Workbook

Sheet Sheet
A1: 广州市卫生健康委备案在册的美容主诊医师名单 （截止至2022.12.31）
A2: 序号 | B2: 姓名 | C2: 执业证书编码 | D2: 美容主诊医师专业 | E2: 主要执业机构 | F2: 美容主诊医师备案时间
A3: 1 | B3: 赵林华 | C3: 210440104000312 | D3: 美容皮肤科专业 | E3: 广州和睦家医院 | F3: 2022-10-31
A4: =SUM(A3,1) -> 2 | B4: 江浩顺 | C4: 120440000017436 | D4: 美容牙科专业 | E4: 中山大学附属第三医院 | F4: 2022-10-31
A5: =SUM(A4,1) -> 3 | B5: 梁启祥 | C5: 120440000700614 | D5: 美容牙科专业 | E5: 中山大学附属第三医院 | F5: 2022-10-31
A6: =SUM(A5,1) -> 4 | B6: 陈琼玉 | C6: 120440000700525 | D6: 美容牙科专业 | E6: 中山大学附属第三医院 | F6: 2022-10-31
A7: =SUM(A6,1) -> 5 | B7: 张娇 | C7: 110440000712706 | D7: 美容皮肤科专业 | E7: 南方医科大学皮肤病医院、广东省皮肤病医院 | F7: 2022-10-31
A8: =SUM(A7,1) -> 6 | B8: 孙文娟 | C8: 120440000700449 | D8: 美容牙科专业 | E8: 中山大学附属第三医院 | F8: 2022-10-31
A9: =SUM(A8,1) -> 7 | B9: 张佳林 | C9: 142440000300931 | D9: 美容中医科专业 | E9: 南方医科大学皮肤病医院、广东省皮肤病医院 | F9: 2022-10-31
A10: 8 | B10: 刘原志 | C10: 110310000056899 | D10: 美容皮肤科专业 | E10: 南方医科大学皮肤病医院、广东省皮肤病医院 | F10: 2022-10-31
A11: 9 | B11: 沈伟钦 | C11: 110440000712991 | D11: 美容皮肤科专业 | E11: 南方医科大学皮肤病医院、广东省皮肤病医院 | F11: 2022-10-31
A12: 10 | B12: 任俊男 | C12: 110440000714916 | D12: 美容皮肤科专业 | E12: 南方医科大学皮肤病医院、广东省皮肤病医院 | F12: 2022-10-31
A13: 11 | B13: 艾菁 | C13: 110440000711002 | D13: 美容皮肤科专业 | E13: 南方医科大学皮肤病医院、广东省皮肤病医院 | F13: 2022-10-31
A14: 12 | B14: 林尔艺 | C14: 210440000700195 | D14: 美容皮肤科专业 | E14: 南方医科大学皮肤病医院、广东省皮肤病医院 | F14: 2022-10-31
A15: 13 | B15: 谢雅琳 | C15: 110431300001829 | D15: 美容皮肤科专业 | E15: 南方医科大学皮肤病医院、广东省皮肤病医院 | F15: 2022-10-31
A16: 14 | B16: 林志淼 | C16: 110110000024925 | D16: 美容皮肤科专业 | E16: 南方医科大学皮肤病医院、广东省皮肤病医院 | F16: 2022-10-31
A17: 15 | B17: 庄玉晨 | C17: 110440000715824 | D17: 美容皮肤科专业 | E17: 南方医科大学皮肤病医院、广东省皮肤病医院 | F17: 2022-10-31
A18: 16 | B18: 苏向阳 | C18: 110440000001802 | D18: 美容皮肤科专业 | E18: 中山大学附属第三医院 | F18: 2022-09-10
A19: 17 | B19: 常飞 | C19: 110620600001501 | D19: 美容外科专业 | E19: 南方医科大学中西医结合医院 | F19: 2022-08-24
A20: 18 | B20: 梁宝莹 | C20: 141440000303819 | D20: 美容中医科专业 | E20: 广东省中医院 | F20: 2022-07-28
A21: 19 | B21: 魏楚升 | C21: 120440106000885 | D21: 美容牙科专业 | E21: 广东美恩整形美容医院 | F21: 2022-07-28
A22: 20 | B22: 黄凯凯 | C22: 110440000712174 | D22: 美容皮肤科专业 | E22: 广东省中医院 | F22: 2022-07-28
A23: 21 | B23: 李红毅 | C23: 141440000301636 | D23: 美容中医科专业 | E23: 广东省中医院 | F23: 2022-07-28
A24: 22 | B24: 刘全知 | C24: 141440000303679 | D24: 美容中医科专业 | E24: 广东省中医院 | F24: 2022-07-28
A25: 23 | B25: 何伟 | C25: 141440000305013 | D25: 美容中医科专业 | E25: 广东省中医院 | F25: 2022-07-28
A26: 24 | B26: 伍慧媚 | C26: 141440000304056 | D26: 美容中医科专业 | E26: 广东省中医院 | F26: 2022-07-28
A27: 25 | B27: 陈信生 | C27: 141440000301910 | D27: 美容中医科专业 | E27: 广东省中医院 | F27: 2022-07-28
A28: 26 | B28: 甄庆育 | C28: 141440000304256 | D28: 美容中医科专业 | E28: 广东省中医院 | F28: 2022-07-28
A29: =SUM(A28,1) -> 27 | B29: 刘维 | C29: 141440000301955 | D29: 美容中医科专业 | E29: 广东省中医院 | F29: 2022-07-28
A30: 28 | B30: 刘俊峰 | C30: 141440000303164 | D30: 美容中医科专业 | E30: 广东省中医院 | F30: 2022-07-28
A31: 29 | B31: 廖列辉 | C31: 141440000301634 | D31: 美容中医科专业 | E31: 广东省中医院 | F31: 2022-07-28
A32: 30 | B32: 邓家侵 | C32: 141440000302210 | D32: 美容中医科专业 | E32: 广东省中医院 | F32: 2022-07-28
A33: 31 | B33: 杨琳琳 | C33: 141440000303583 | D33: 美容中医科专业 | E33: 广东省中医院 | F33: 2022-07-28
A34: 32 | B34: 熊述清 | C34: 142440000300748 | D34: 美容中医科专业 | E34: 广东省中医院 | F34: 2022-07-28
A35: 33 | B35: 李锦锦 | C35: 141440000305282 | D35: 美容中医科专业 | E35: 广东省中医院 | F35: 2022-07-28
A36: 34 | B36: 闫玉红 | C36: 141440000303165 | D36: 美容中医科专业 | E36: 广东省中医院 | F36: 2022-07-28
A37: 35 | B37: 吴元胜 | C37: 110440000700872 | D37: 美容皮肤科专业 | E37: 广东省中医院 | F37: 2022-07-28
A38: 36 | B38: 莫秀梅 | C38: 141440000302273 | D38: 美容中医科专业 | E38: 广东省中医院 | F38: 2022-07-28
A39: 37 | B39: 宋丽芬 | C39: 141440000304051 | D39: 美容中医科专业 | E39: 广东省中医院 | F39: 2022-07-28
A40: 38 | B40: 黄咏菁 | C40: 141440000301635 | D40: 美容中医科专业 | E40: 广东省中医院 | F40: 2022-07-28
A41: 39 | B41: 莫冬冬 | C41: 110440000708317 | D41: 美容皮肤科专业 | E41: 广东省中医院 | F41: 2022-07-28
A42: 40 | B42: 梁家芬 | C42: 141440000303814 | D42: 美容中医科专业 | E42: 广东省中医院 | F42: 2022-07-28
A43: 41 | B43: 何梓阳 | C43: 141440000304236 | D43: 美容中医科专业 | E43: 广东省中医院 | F43: 2022-07-28
A44: 42 | B44: 贾金靖 | C44: 110610000009948 | D44: 美容皮肤科专业 | E44: 广东省中医院 | F44: 2022-07-28
A45: 43 | B45: 王璐 | C45: 120420000700176 | D45: 美容牙科专业 | E45: 广东药科大学附属第一医院 | F45: 2022-07-19
A46: 44 | B46: 李建华 | C46: 110440000024557 | D46: 美容皮肤科专业 | E46: 南方医科大学中西医结合医院 | F46: 2022-07-19
A47: 45 | B47: 刘亮 | C47: 110440000024537 | D47: 美容外科专业 | E47: 南方医科大学中西医结合医院 | F47: 2022-07-19
A48: 46 | B48: 茹扎 | C48: 110650100004686 | D48: 美容外科专业 | E48: 中山大学附属第三医院 | F48: 2022-07-19
A49: 47 | B49: 蒋水清 | C49: 110440111004299 | D49: 美容皮肤科专业 | E49: 广州壹加壹美容医院 | F49: 2022-07-08
A50: 48 | B50: 谢婷 | C50: 110440000702982 | D50: 美容皮肤科专业 | E50: 广东省中医院 | F50: 2022-06-20
A51: 49 | B51: 禤国维 | C51: 141440000301628 | D51: 美容中医科专业 | E51: 广东省中医院 | F51: 2022-06-20
A52: 50 | B52: 秦晓民 | C52: 110440000703710 | D52: 美容皮肤科专业 | E52: 广东省中医院 | F52: 2022-06-20
A53: 51 | B53: 康旭 | C53: 110440000701505 | D53: 美容皮肤科专业 | E53: 广东省中医院 | F53: 2022-06-20
A54: 52 | B54: 朱培成 | C54: 110440000701285 | D54: 美容皮肤科专业 | E54: 广东省中医院 | F54: 2022-06-20
A55: 53 | B55: 池凤好 | C55: 141440000301632 | D55: 美容中医科专业 | E55: 广东省中医院 | F55: 2022-06-20
A56: 54 | B56: 陈达灿 | C56: 141440000301629 | D56: 美容中医科专业 | E56: 广东省中医院 | F56: 2022-06-20
A57: 55 | B57: 范瑞强 | C57: 141440000301630 | D57: 美容中医科专业 | E57: 广东省中医院 | F57: 2022-06-20
A58: 56 | B58: 陈晓芬 | C58: 110440111002438 | D58: 美容皮肤科专业 | E58: 广东省中医院 | F58: 2022-06-20
A59: 57 | B59: 卢传坚 | C59: 141440000301452 | D59: 美容中医科专业 | E59: 广东省中医院 | F59: 2022-06-20
A60: 58 | B60: 顾荣 | C60: 110440105001978 | D60: 美容外科专业 | E60: 广东美恩整形美容医院 | F60: 2022-06-17
A61: 59 | B61: 钟秀 | C61: 110440100015419 | D61: 美容外科专业 | E61: 广州爱博恩妇产医院 | F61: 2022-06-17
A62: 60 | B62: 康成容 | C62: 120440000017648 | D62: 美容牙科专业 | E62: 广东药学院附属第一医院 | F62: 2022-06-10
A63: 61 | B63: 曾小烈 | C63: 141440000000344 | D63: 美容中医科专业 | E63: 广东药学院附属第一医院 | F63: 2022-06-10
A64: 62 | B64: 陈凯 | C64: 120440000700087 | D64: 美容牙科专业 | E64: 广东药学院附属第一医院 | F64: 2022-06-10
A65: 63 | B65: 陈慧芝 | C65: 120440000017699 | D65: 美容牙科专业 | E65: 广东药学院附属第一医院 | F65: 2022-06-10
A66: 64 | B66: 李梁 | C66: 120440000700088 | D66: 美容牙科专业 | E66: 广东药学院附属第一医院 | F66: 2022-06-10
A67: 65 | B67: 叶龙霖 | C67: 141440000303914 | D67: 美容中医科专业 | E67: 广东药科大学附属第一医院 | F67: 2022-06-10
A68: 66 | B68: 马穗齐 | C68: 120440000017353 | D68: 美容牙科专业 | E68: 广东药学院附属第一医院 | F68: 2022-06-10
A69: 67 | B69: 何智君 | C69: 120440000700221 | D69: 美容牙科专业 | E69: 广东药学院附属第一医院 | F69: 2022-06-10
A70: 68 | B70: 王玉栋 | C70: 120440000000305 | D70: 美容牙科专业 | E70: 广东药学院附属第一医院 | F70: 2022-06-02
A71: 69 | B71: 王叶青 | C71: 141440000303257 | D71: 美容中医科专业 | E71: 广东药学院附属第一医院 | F71: 2022-06-02
A72: 70 | B72: 李张维 | C72: 120440000700201 | D72: 美容牙科专业 | E72: 广东药学院附属第一医院 | F72: 2022-06-02
A73: 71 | B73: 张芹 | C73: 120440000000303 | D73: 美容牙科专业 | E73: 广东药学院附属第一医院 | F73: 2022-06-02
A74: 72 | B74: 洪敏 | C74: 141440000000346 | D74: 美容中医科专业 | E74: 广东药学院附属第一医院 | F74: 2022-06-02
A75: 73 | B75: 姜薇 | C75: 141440000000343 | D75: 美容中医科专业 | E75: 广东药学院附属第一医院 | F75: 2022-06-02
A76: 74 | B76: 许志锋 | C76: 120440000000307 | D76: 美容牙科专业 | E76: 广东药学院附属第一医院 | F76: 2022-06-02
A77: 75 | B77: 卢秉慧 | C77: 141440000303507 | D77: 美容中医科专业 | E77: 广东药学院附属第一医院 | F77: 2022-06-02
A78: 76 | B78: 李海丁 | C78: 110440114001825 | D78: 美容皮肤科专业 | E78: 广东美恩整形美容医院 | F78: 2022-05-30
A79: 77 | B79: 钟泽敏 | C79: 110440000713664 | D79: 美容皮肤科专业 | E79: 南方医科大学皮肤病医院、广东省皮肤病医院 | F79: 2022-04-29
A80: 78 | B80: 杨赛 | C80: 110440000711296 | D80: 美容皮肤科专业 | E80: 南方医科大学皮肤病医院、广东省皮肤病医院 | F80: 2022-04-29
A81: 79 | B81: 韩大伟 | C81: 110110000045870 | D81: 美容皮肤科专业 | E81: 南方医科大学皮肤病医院、广东省皮肤病医院 | F81: 2022-04-29
A82: 80 | B82: 文玮 | C82: 110440000712699 | D82: 美容皮肤科专业 | E82: 南方医科大学皮肤病医院、广东省皮肤病医院 | F82: 2022-04-29
A83: 81 | B83: 杜艳瑜 | C83: 110440000710426 | D83: 美容皮肤科专业 | E83: 南方医科大学皮肤病医院、广东省皮肤病医院 | F83: 2022-04-29
A84: 82 | B84: 余晓玲 | C84: 110441402000261 | D84: 美容皮肤科专业 | E84: 南方医科大学皮肤病医院、广东省皮肤病医院 | F84: 2022-04-29
A85: 83 | B85: 严婷婷 | C85: 110440000706262 | D85: 美容皮肤科专业 | E85: 南方医科大学皮肤病医院、广东省皮肤病医院 | F85: 2022-04-29
A86: 84 | B86: 王炫 | C86: 110360100005242 | D86: 美容皮肤科专业 | E86: 南方医科大学皮肤病医院、广东省皮肤病医院 | F86: 2022-04-29
A87: 85 | B87: 王朋 | C87: 110650000008470 | D87: 美容皮肤科专业 | E87: 南方医科大学皮肤病医院、广东省皮肤病医院 | F87: 2022-04-29
A88: 86 | B88: 谢恒 | C88: 110510107006156 | D88: 美容皮肤科专业 | E88: 南方医科大学皮肤病医院、广东省皮肤病医院 | F88: 2022-04-29
A89: 87 | B89: 黎裳笙 | C89: 110460200001152 | D89: 美容皮肤科专业 | E89: 广州和睦家医院 | F89: 2022-04-15
A90: 88 | B90: 钟启彬 | C90: 110440703000517 | D90: 美容外科专业 | E90: 广东美恩整形美容医院 | F90: 2022-04-15
A91: 89 | B91: 于大山 | C91: 110440106005432 | D91: 美容外科专业 | E91: 广州爱博恩妇产医院 | F91: 2022-04-15
A92: 90 | B92: 廖惠玉 | C92: 141440104001160 | D92: 美容中医科专业 | E92: 广州爱博恩妇产医院 | F92: 2022-04-15
A93: =SUM(A92,1) -> 91 | B93: 徐媛 | C93: 110440000706325 | D93: 美容外科专业 | E93: 广东药学院附属第一医院 | F93: 2022-04-12
A94: 92 | B94: 赵欣欣 | C94: 110440000005805 | D94: 美容外科专业 | E94: 广东药学院附属第一医院 | F94: 2022-04-12
A95: 93 | B95: 惠俐 | C95: 110440000005803 | D95: 美容外科专业 | E95: 广东药学院附属第一医院 | F95: 2022-04-12
A96: 94 | B96: 宋燕平 | C96: 110440000707040 | D96: 美容皮肤科专业 | E96: 广东药学院附属第一医院 | F96: 2022-04-12
A97: 95 | B97: 李平 | C97: 110440000701863 | D97: 美容外科专业 | E97: 广东药学院附属第一医院 | F97: 2022-04-12
A98: 96 | B98: 陈元良 | C98: 110440000005641 | D98: 美容外科专业 | E98: 广东药学院附属第一医院 | F98: 2022-04-12
A99: 97 | B99: 王红丽 | C99: 110440000714255 | D99: 美容皮肤科专业 | E99: 广东药科大学附属第一医院 | F99: 2022-04-12
A100: 98 | B100: 罗丽芳 | C100: 110440100012465 | D100: 美容皮肤科专业 | E100: 广东药科大学附属第一医院 | F100: 2022-04-12
A101: 99 | B101: 吴良才 | C101: 110440000022268 | D101: 美容皮肤科专业 | E101: 中山大学附属第六医院 | F101: 2022-03-30
A102: 100 | B102: 杨朝英 | C102: 110440000026233 | D102: 美容皮肤科专业 | E102: 中山大学附属第六医院 | F102: 2022-03-30
A103: 101 | B103: 李艳嫦 | C103: 110440000707414 | D103: 美容皮肤科专业 | E103: 中山大学附属第六医院 | F103: 2022-03-30
A104: 102 | B104: 贺凌飞 | C104: 120420000000033 | D104: 美容牙科专业 | E104: 广东药科大学附属第一医院 | F104: 2022-03-07
A105: 103 | B105: 王珂 | C105: 120440000700499 | D105: 美容牙科专业 | E105: 广东药学院附属第一医院 | F105: 2022-03-07
A106: 104 | B106: 廖锐 | C106: 141440000304875 | D106: 美容中医科专业 | E106: 广东药科大学附属第一医院 | F106: 2022-03-07
A107: 105 | B107: 聂文强 | C107: 141440000304876 | D107: 美容中医科专业 | E107: 广东药科大学附属第一医院 | F107: 2022-03-07
A108: 106 | B108: 周倩冰 | C108: 120440000700542 | D108: 美容牙科专业 | E108: 广东药学院附属第一医院 | F108: 2022-03-07
A109: 107 | B109: 谢谦 | C109: 120440000000297 | D109: 美容牙科专业 | E109: 广东药科大学附属第一医院 | F109: 2022-03-07
A110: 108 | B110: 林飞燕 | C110: 110460100003783 | D110: 美容皮肤科专业 | E110: 南方医科大学皮肤病医院、广东省皮肤病医院 | F110: 2022-02-24
A111: 109 | B111: 史晓蔚 | C111: 110210100020412 | D111: 美容皮肤科专业 | E111: 南方医科大学皮肤病医院、广东省皮肤病医院 | F111: 2022-02-14
A112: 110 | B112: 陈小光 | C112: 110440100009132 | D112: 美容外科专业 | E112: 广东省第二人民医院 | F112: 2022-02-14
A113: 111 | B113: 林秀 | C113: 110440000710986 | D113: 美容皮肤科专业 | E113: 广东省妇幼保健院、广东省妇产医院、广东省儿童医院 | F113: 2022-02-14
A114: 112 | B114: 李真真 | C114: 110410000073078 | D114: 美容皮肤科专业 | E114: 广东省妇幼保健院、广东省妇产医院、广东省儿童医院 | F114: 2022-02-14
A115: 113 | B115: 黄丽霞 | C115: 141440000304502 | D115: 美容中医科专业 | E115: 南方医科大学皮肤病医院、广东省皮肤病医院 | F115: 2022-02-14
A116: 114 | B116: 柯吴坚 | C116: 110440000708206 | D116: 美容皮肤科专业 | E116: 广东省皮肤病医院 | F116: 2022-02-14
A117: 115 | B117: 叶媛 | C117: 110440000710763 | D117: 美容外科专业 | E117: 广东省妇幼保健院、广东省妇产医院、广东省儿童医院 | F117: 2022-02-14
A118: 116 | B118: 罗卓迪 | C118: 110440000712365 | D118: 美容皮肤科专业 | E118: 广东省妇幼保健院、广东省妇产医院、广东省儿童医院 | F118: 2022-02-14
A119: 117 | B119: 罗毅 | C119: 110320000042976 | D119: 美容外科专业 | E119: 南方医科大学皮肤病医院、广东省皮肤病医院 | F119: 2022-02-14
A120: 118 | B120: 谭梅军 | C120: 110360000003410 | D120: 美容外科专业 | E120: 广东省妇幼保健院、广东省妇产医院、广东省儿童医院 | F120: 2022-02-14
A121: 119 | B121: 后晨蓉 | C121: 110440000709247 | D121: 美容外科专业 | E121: 广东省皮肤病医院 | F121: 2022-02-14
A122: 120 | B122: 王智琴 | C122: 110440000711024 | D122: 美容皮肤科专业 | E122: 广东省妇幼保健院、广东省妇产医院、广东省儿童医院 | F122: 2022-02-14
A123: 121 | B123: 陈胡林 | C123: 110440000714293 | D123: 美容皮肤科专业 | E123: 广东省妇幼保健院、广东省妇产医院、广东省儿童医院 | F123: 2022-02-14
A124: 122 | B124: 姜金豆 | C124: 110440000707700 | D124: 美容外科专业 | E124: 广东省妇幼保健院、广东省妇产医院、广东省儿童医院 | F124: 2022-02-14
A125: 123 | B125: 冯二玫 | C125: 120440000700232 | D125: 美容牙科专业 | E125: 南方医科大学口腔医院（广东省口腔医院） | F125: 2022-01-30
A126: 124 | B126: 谢远雯 | C126: 120440000700535 | D126: 美容牙科专业 | E126: 广东省口腔医院、番禺分院、南方医科大学附属口腔医院 | F126: 2022-01-30
A127: 125 | B127: 范卫华 | C127: 120440000000061 | D127: 美容牙科专业 | E127: 南方医科大学口腔医院（广东省口腔医院） | F127: 2022-01-30
A128: 126 | B128: 李剑波 | C128: 120440000700322 | D128: 美容牙科专业 | E128: 广东省口腔医院、番禺分院、南方医科大学附属口腔医院 | F128: 2022-01-30
A129: 127 | B129: 张梅 | C129: 120440000017286 | D129: 美容牙科专业 | E129: 广东省口腔医院、番禺分院、南方医科大学附属口腔医院 | F129: 2022-01-30
A130: 128 | B130: 戚威娟 | C130: 120440000700272 | D130: 美容牙科专业 | E130: 广东省口腔医院、番禺分院、南方医科大学附属口腔医院 | F130: 2022-01-30
A131: 129 | B131: 张超 | C131: 120440000700508 | D131: 美容牙科专业 | E131: 广东省口腔医院、番禺分院、南方医科大学附属口腔医院 | F131: 2022-01-30
A132: 130 | B132: 钟惠兰 | C132: 120440000017577 | D132: 美容牙科专业 | E132: 广东省口腔医院、番禺分院、南方医科大学附属口腔医院 | F132: 2022-01-30
A133: 131 | B133: 刘成霞 | C133: 120440000700239 | D133: 美容牙科专业 | E133: 广东省口腔医院、番禺分院、南方医科大学附属口腔医院 | F133: 2022-01-30
A134: 132 | B134: 王勤 | C134: 120440000700289 | D134: 美容牙科专业 | E134: 广东省口腔医院、番禺分院、南方医科大学附属口腔医院 | F134: 2022-01-30
A135: 133 | B135: 吴王喜 | C135: 120440000700939 | D135: 美容牙科专业 | E135: 南方医科大学口腔医院（广东省口腔医院） | F135: 2022-01-30
A136: 134 | B136: 郑庄 | C136: 120440000017320 | D136: 美容牙科专业 | E136: 广东省口腔医院、番禺分院、南方医科大学附属口腔医院 | F136: 2022-01-30
A137: 135 | B137: 张迪 | C137: 120440000700211 | D137: 美容牙科专业 | E137: 南方医科大学口腔医院（广东省口腔医院） | F137: 2022-01-30
A138: 136 | B138: 龚涛 | C138: 120440000017629 | D138: 美容牙科专业 | E138: 广东省口腔医院、番禺分院、南方医科大学附属口腔医院 | F138: 2022-01-30
A139: 137 | B139: 姜盼 | C139: 120440000700707 | D139: 美容牙科专业 | E139: 广东省口腔医院、番禺分院、南方医科大学附属口腔医院 | F139: 2022-01-30
A140: 138 | B140: 柴巧学 | C140: 120440000701127 | D140: 美容牙科专业 | E140: 南方医科大学口腔医院（广东省口腔医院） | F140: 2022-01-30
A141: 139 | B141: 王丹 | C141: 120440000017677 | D141: 美容牙科专业 | E141: 广东省口腔医院、番禺分院、南方医科大学附属口腔医院 | F141: 2022-01-30
A142: 140 | B142: 刘伟珍 | C142: 120440000700444 | D142: 美容牙科专业 | E142: 广东省口腔医院、番禺分院、南方医科大学附属口腔医院 | F142: 2022-01-30
A143: 141 | B143: 杨勤 | C143: 120440000000065 | D143: 美容牙科专业 | E143: 广东省口腔医院、番禺分院、南方医科大学附属口腔医院 | F143: 2022-01-30
A144: 142 | B144: 张雪洋 | C144: 120440000000781 | D144: 美容牙科专业 | E144: 广东省口腔医院、番禺分院、南方医科大学附属口腔医院 | F144: 2022-01-30
A145: 143 | B145: 朱安棣 | C145: 120440000000783 | D145: 美容牙科专业 | E145: 广东省口腔医院、番禺分院、南方医科大学附属口腔医院 | F145: 2022-01-30
A146: 144 | B146: 宁晖丽 | C146: 120440000700287 | D146: 美容牙科专业 | E146: 广东省口腔医院、番禺分院、南方医科大学附属口腔医院 | F146: 2022-01-30
A147: 145 | B147: 徐学良 | C147: 120440000017285 | D147: 美容牙科专业 | E147: 广东省口腔医院、番禺分院、南方医科大学附属口腔医院 | F147: 2022-01-30
A148: 146 | B148: 张文忠 | C148: 120440000000011 | D148: 美容牙科专业 | E148: 广东省口腔医院、番禺分院、南方医科大学附属口腔医院 | F148: 2022-01-30
A149: 147 | B149: 谢立本 | C149: 120440000700246 | D149: 美容牙科专业 | E149: 广东省口腔医院、番禺分院、南方医科大学附属口腔医院 | F149: 2022-01-30
A150: 148 | B150: 杨孝勤 | C150: 120440000700390 | D150: 美容牙科专业 | E150: 广东省口腔医院、番禺分院、南方医科大学附属口腔医院 | F150: 2022-01-30
A151: 149 | B151: 赵华 | C151: 120440000017634 | D151: 美容牙科专业 | E151: 广东省口腔医院、番禺分院、南方医科大学附属口腔医院 | F151: 2022-01-30
A152: 150 | B152: 童方丽 | C152: 120440000700204 | D152: 美容牙科专业 | E152: 广东省口腔医院、番禺分院、南方医科大学附属口腔医院 | F152: 2022-01-30
A153: 151 | B153: 卢海宾 | C153: 120440000700261 | D153: 美容牙科专业 | E153: 广东省口腔医院、番禺分院、南方医科大学附属口腔医院 | F153: 2022-01-30
A154: 152 | B154: 吕影涛 | C154: 120440000700266 | D154: 美容牙科专业 | E154: 广东省口腔医院、番禺分院、南方医科大学附属口腔医院 | F154: 2022-01-30
A155: 153 | B155: 包丽娜 | C155: 120441302000078 | D155: 美容牙科专业 | E155: 南方医科大学口腔医院（广东省口腔医院） | F155: 2022-01-30
A156: 154 | B156: 杨勃 | C156: 120440000017685 | D156: 美容牙科专业 | E156: 广东省口腔医院、番禺分院、南方医科大学附属口腔医院 | F156: 2022-01-30
A157: =SUM(A156,1) -> 155 | B157: 谢成婕 | C157: 120440000017691 | D157: 美容牙科专业 | E157: 广东省口腔医院、番禺分院、南方医科大学附属口腔医院 | F157: 2022-01-30
A158: 156 | B158: 熊红珍 | C158: 120440000017663 | D158: 美容牙科专业 | E158: 广东省口腔医院、番禺分院、南方医科大学附属口腔医院 | F158: 2022-01-30
A159: 157 | B159: 贾博 | C159: 120440000700339 | D159: 美容牙科专业 | E159: 广东省口腔医院、番禺分院、南方医科大学附属口腔医院 | F159: 2022-01-30
A160: 158 | B160: 李毅 | C160: 120440000700888 | D160: 美容牙科专业 | E160: 南方医科大学口腔医院（广东省口腔医院） | F160: 2022-01-30
A161: 159 | B161: 杨剑珍 | C161: 120440000700230 | D161: 美容牙科专业 | E161: 广东省口腔医院、番禺分院、南方医科大学附属口腔医院 | F161: 2022-01-30
A162: 160 | B162: 钟素兰 | C162: 120440000700203 | D162: 美容牙科专业 | E162: 广东省口腔医院、番禺分院、南方医科大学附属口腔医院 | F162: 2022-01-30
A163: 161 | B163: 李志强 | C163: 120440000017319 | D163: 美容牙科专业 | E163: 广东省口腔医院、番禺分院、南方医科大学附属口腔医院 | F163: 2022-01-30
A164: 162 | B164: 武月霞 | C164: 120440000700479 | D164: 美容牙科专业 | E164: 广东省口腔医院、番禺分院、南方医科大学附属口腔医院 | F164: 2022-01-30
A165: 163 | B165: 刘显文 | C165: 120440000700558 | D165: 美容牙科专业 | E165: 广东省口腔医院、番禺分院、南方医科大学附属口腔医院 | F165: 2022-01-30
A166: 164 | B166: 万贤凤 | C166: 120440000017644 | D166: 美容牙科专业 | E166: 广东省口腔医院、番禺分院、南方医科大学附属口腔医院 | F166: 2022-01-30
A167: 165 | B167: 倪佳 | C167: 120440000700268 | D167: 美容牙科专业 | E167: 广东省口腔医院、番禺分院、南方医科大学附属口腔医院 | F167: 2022-01-30
A168: 166 | B168: 陈柯 | C168: 120440100000414 | D168: 美容牙科专业 | E168: 南方医科大学口腔医院（广东省口腔医院） | F168: 2022-01-30
A169: 167 | B169: 阙国鹰 | C169: 120440000700711 | D169: 美容牙科专业 | E169: 广东省口腔医院、番禺分院、南方医科大学附属口腔医院 | F169: 2022-01-30
A170: 168 | B170: 陈军 | C170: 120440000700231 | D170: 美容牙科专业 | E170: 广东省口腔医院、番禺分院、南方医科大学附属口腔医院 | F170: 2022-01-30
A171: 169 | B171: 邱小玲 | C171: 120440000017690 | D171: 美容牙科专业 | E171: 广东省口腔医院、番禺分院、南方医科大学附属口腔医院 | F171: 2022-01-30
A172: 170 | B172: 刘艳华 | C172: 110440000707693 | D172: 美容皮肤科专业 | E172: 广东省第二人民医院 | F172: 2022-01-25
A173: 171 | B173: 谢阳 | C173: 110440000701728 | D173: 美容皮肤科专业 | E173: 中山大学附属第三医院 | F173: 2022-01-20
A174: 172 | B174: 夏悦 | C174: 110440000706956 | D174: 美容皮肤科专业 | E174: 中山大学附属第三医院 | F174: 2022-01-20
A175: 173 | B175: 陈剑 | C175: 110440000715208 | D175: 美容皮肤科专业 | E175: 中山大学附属第三医院 | F175: 2022-01-20
A176: 174 | B176: 卢荣标 | C176: 110440000026635 | D176: 美容皮肤科专业 | E176: 中山大学附属第三医院 | F176: 2022-01-20
A177: 175 | B177: 陆春 | C177: 110440000001812 | D177: 美容皮肤科专业 | E177: 中山大学附属第三医院 | F177: 2022-01-20
A178: 176 | B178: 王宏薇 | C178: 110440106004109 | D178: 美容皮肤科专业 | E178: 广州爱博恩妇产医院 | F178: 2022-01-20
A179: 177 | B179: 曾颖怀 | C179: 120440000000062 | D179: 美容牙科专业 | E179: 广东省口腔医院、番禺分院、南方医科大学附属口腔医院 | F179: 2021-12-24
A180: 178 | B180: 周震 | C180: 120440000700622 | D180: 美容牙科专业 | E180: 广东省口腔医院、番禺分院、南方医科大学附属口腔医院 | F180: 2021-12-24
A181: 179 | B181: 高扬 | C181: 120440000700811 | D181: 美容牙科专业 | E181: 广东省口腔医院、番禺分院、南方医科大学附属口腔医院 | F181: 2021-12-24
A182: 180 | B182: 钟建莉 | C182: 120440000700186 | D182: 美容牙科专业 | E182: 广东省口腔医院、番禺分院、南方医科大学附属口腔医院 | F182: 2021-12-24
A183: 181 | B183: 刘娟 | C183: 120440000700176 | D183: 美容牙科专业 | E183: 广东省口腔医院、番禺分院、南方医科大学附属口腔医院 | F183: 2021-12-24
A184: 182 | B184: 栾修文 | C184: 120440000017518 | D184: 美容牙科专业 | E184: 广东省口腔医院、番禺分院、南方医科大学附属口腔医院 | F184: 2021-12-24
A185: 183 | B185: 余瑞雪 | C185: 120440000700321 | D185: 美容牙科专业 | E185: 广东省口腔医院、番禺分院、南方医科大学附属口腔医院 | F185: 2021-12-24
A186: 184 | B186: 韩倩倩 | C186: 120440000700517 | D186: 美容牙科专业 | E186: 广东省口腔医院、番禺分院、南方医科大学附属口腔医院 | F186: 2021-12-24
A187: 185 | B187: 许竞 | C187: 120440000000074 | D187: 美容牙科专业 | E187: 广东省口腔医院、番禺分院、南方医科大学附属口腔医院 | F187: 2021-12-24
A188: 186 | B188: 卢煜 | C188: 120440000700474 | D188: 美容牙科专业 | E188: 广东省口腔医院、番禺分院、南方医科大学附属口腔医院 | F188: 2021-12-24
A189: 187 | B189: 刘芳 | C189: 120440000017540 | D189: 美容牙科专业 | E189: 广东省口腔医院、番禺分院、南方医科大学附属口腔医院 | F189: 2021-12-24
A190: 188 | B190: 韩久松 | C190: 120440000700262 | D190: 美容牙科专业 | E190: 广东省口腔医院、番禺分院、南方医科大学附属口腔医院 | F190: 2021-12-24
A191: 189 | B191: 张伟炎 | C191: 120440000000021 | D191: 美容牙科专业 | E191: 广东省口腔医院、番禺分院、南方医科大学附属口腔医院 | F191: 2021-12-24
A192: 190 | B192: 龙红月 | C192: 120440000000078 | D192: 美容牙科专业 | E192: 广东省口腔医院、番禺分院、南方医科大学附属口腔医院 | F192: 2021-12-24
A193: 191 | B193: 钟永荣 | C193: 120440000700158 | D193: 美容牙科专业 | E193: 广东省口腔医院、番禺分院、南方医科大学附属口腔医院 | F193: 2021-12-24
A194: 192 | B194: 杨晓喻 | C194: 120440000017321 | D194: 美容牙科专业 | E194: 广东省口腔医院、番禺分院、南方医科大学附属口腔医院 | F194: 2021-12-24
A195: 193 | B195: 麻丹丹 | C195: 120440000700408 | D195: 美容牙科专业 | E195: 南方医科大学口腔医院（广东省口腔医院） | F195: 2021-12-24
A196: 194 | B196: 张晟 | C196: 120440000700092 | D196: 美容牙科专业 | E196: 广东省口腔医院、番禺分院、南方医科大学附属口腔医院 | F196: 2021-12-24
A197: 195 | B197: 崔秋菊 | C197: 120440000700313 | D197: 美容牙科专业 | E197: 广东省口腔医院、番禺分院、南方医科大学附属口腔医院 | F197: 2021-12-24
A198: 196 | B198: 张宇婕 | C198: 120440000017541 | D198: 美容牙科专业 | E198: 广东省口腔医院、番禺分院、南方医科大学附属口腔医院 | F198: 2021-12-24
A199: 197 | B199: 谢宇 | C199: 120440000700509 | D199: 美容牙科专业 | E199: 广东省口腔医院、番禺分院、南方医科大学附属口腔医院 | F199: 2021-12-24
A200: 198 | B200: 刘志强 | C200: 120440000700673 | D200: 美容牙科专业 | E200: 广东省口腔医院、番禺分院、南方医科大学附属口腔医院 | F200: 2021-12-24
... 639 more rows
